Cogmind - Beta 12 @@@ ROGUE MODE // 2023.03.30 @ 21:10:41 Player: leiavoia Result: Destroyed by Y-45 Defender with Heavy Assault Rifle Performance ------------- Evolutions (1) 500 Regions Visited (3) 600 Robots Destroyed (5) 25 Value Destroyed (98) 98 Prototype IDs (2) 40 Alien Tech Used (0) 0 Bonus (0) 0 TOTAL SCORE: 1263 Bonus ------- None Cogmind --------- Core Integrity 0/400 Matter 267/300 Energy 100/100 System Corruption 4% Temperature Cool (9) Movement Core (50) Location -9/Materials Parts ------- > --- POWER (1) -------- (None) > --- PROPULSION (4) --- (None) > --- UTILITY (2) ------ (None) > --- WEAPON (2) ------- Light Cannon > --- INVENTORY (5) ---- Light Ion Engine Light Ion Engine Experimental Sensor Array Hardened Light Armor Plating Hardened Light Armor Plating Peak State ------------ > --- POWER ------------ (None) > --- PROPULSION ------- Flight Unit > --- UTILITY ---------- Improved Heat Sink Experimental Sensor Array > --- WEAPON ----------- Light Assault Rifle Improved Assault Rifle > --- INVENTORY -------- Light Ion Engine Light Ion Engine Light Treads Light Treads [Rating: 17] Favorites ----------- Power Light Ion Engine Engine Light Ion Engine Propulsion Flight Unit Treads Light Treads Leg Aluminum Leg Hover Unit Improved Hover Unit Flight Unit Flight Unit Utility Improved Heat Sink Device Improved Heat Sink Storage Small Storage Unit Protection Hardened Light Armor Plating Weapon Light Assault Rifle Energy Gun EM Pulse Gun Ballistic Gun Light Assault Rifle Ballistic Cannon Light Cannon Build | -11 -10 -10 -9 ------- Run | Jun Mat Min Mat Slots Evolved 2 | . . . 2 Power . | . . . . Propulsion 2 | . . . 2 Utility . | . . . . Weapon . | . . . . Parts Attached 19 | . 5 5 9 Power 2 | . 1 . 1 Engine 2 | . 1 . 1 Core . | . . . . Reactor . | . . . . Propulsion 8 | . 2 2 4 Treads 2 | . . . 2 Leg . | . . . . Wheel . | . . . . Hover 1 | . . . 1 Flight 5 | . 2 2 1 Utility 5 | . 1 2 2 Device 4 | . 1 2 1 Storage . | . . . . Processor . | . . . . Hackware . | . . . . Protection 1 | . . . 1 Artifact . | . . . . Weapon 4 | . 1 1 2 Energy Gun . | . . . . Energy Cannon . | . . . . Ballistic Gun 3 | . 1 1 1 Ballistic Cannon 1 | . . . 1 Launcher . | . . . . Special Weapon . | . . . . Impact Weapon . | . . . . Slashing Weapon . | . . . . Piercing Weapon . | . . . . Special Melee Weapon . | . . . . Unidentified Prototypes 2 | . . 1 1 Corrupted Parts 1 | . . 1 . System Corruption 2 | . . 2 . Parts Lost 13 | . . 7 6 Power 1 | . . 1 . Propulsion 7 | . . 3 4 Utility 2 | . . 1 1 Weapon 3 | . . 2 1 Highest Loss Streak 5 | . . 5 3 To Critical Strikes . | . . . . Average Slot Usage (%) 46 | . 61 69 21 Engine 1 | . 2 3 . Treads 3 | . . . 7 Leg 3 | . 19 . . Flight 11 | . 8 26 1 Device 7 | . 1 16 3 Energy Gun 1 | . 9 . . Ballistic Gun 14 | . 18 22 5 Naked Turns 49 | . . . 49 Heaviest Build 7 | 3 7 7 5 Greatest Support 20 | 20 20 8 7 Greatest Overweight (x) 1 | . . . 1 Average Overweight (x) . | . . . . Largest Inventory Capacity 8 | 8 5 5 5 Average Capacity 5 | 6 5 5 5 Most Carried 5 | 5 5 5 5 Average Carried 4 | 5 4 4 4 Final Capacity 5 | 5 5 5 5 Final Carried 5 | 5 5 5 5 Class Distribution -------------------- 100% | Mutant Dominant Class ---------------- Mutant | -10/Materials Mutant | -10/Mines Mutant | -9/Materials Resources | -11 -10 -10 -9 ----------- Run | Jun Mat Min Mat Matter Collected 281 | 197 53 31 . Remotely . | . . . . Salvage Created 133 | . 133 . . Parts 12 | . 12 . . Haulers Intercepted . | . . . . Recyclers Shooed . | . . . . Parts Field Recycled . | . . . . Retrieved Matter . | . . . . Parts Self-Destructed . | . . . . Prevented . | . . . . Kills | -11 -10 -10 -9 ------- Run | Jun Mat Min Mat Combat Hostiles Destroyed 5 | . 5 . . Guns 5 | . 5 . . Classes Destroyed 2 | . 2 . . Swarmer 3 | . 3 . . Grunt 2 | . 2 . . Best Kill Streak 5 | . 5 . . Combat Bots Only 5 | . 5 . . Max Kills in Single Turn 1 | . 1 . . Gunslinging . | . . . . Exploded . | . . . . Melee . | . . . . Uniques/NPCs Destroyed . | . . . . Combat | -11 -10 -10 -9 -------- Run | Jun Mat Min Mat Damage Taken 1537 | . 75 462 1000 Core 588 | . 22 156 410 Absorbed by Shields . | . . . . Core Remaining (%) 64 | 100 . 28 . Volleys Fired 13 | . 11 . 2 Largest 2 | . 2 . 1 Hottest 60 | . 60 . 35 Shots Fired 24 | . 22 . 2 Gun 22 | . 22 . . Cannon 2 | . . . 2 Launcher . | . . . . Special . | . . . . Kinetic 13 | . 11 . 2 Thermal . | . . . . Explosive . | . . . . Electromagnetic 11 | . 11 . . Robot Hit Streak 11 | . 9 . 11 Robot Miss Streak 1 | . 1 . . Penetration Max . | . . . . Secondary Targets . | . . . . Shots Hit Robots 20 | . 18 . 2 Core Hits 7 | . 7 . . Critical Kills . | . . . . Critical Parts Destroyed . | . . . . Critical Strikes 1 | . . . 1 Blast 1 | . . . 1 Melee Attacks . | . . . . Impact . | . . . . Slashing . | . . . . Piercing . | . . . . Sneak Attacks . | . . . . Combat Hostiles . | . . . . Follow-up Attacks . | . . . . Damage Inflicted 256 | . 196 . 60 Guns 196 | . 196 . . Cannons 33 | . . . 33 Explosions . | . . . . Melee . | . . . . Ramming 27 | . . . 27 Kinetic 110 | . 77 . 33 Thermal . | . . . . Explosive . | . . . . Electromagnetic 119 | . 119 . . Impact . | . . . . Slashing . | . . . . Piercing . | . . . . Highest Corruption 4 | . . 2 4 Average Corruption 2 | . . 2 3 Corruption Purged . | . . . . Corruption Blocked . | . . . . Effects 3 | . . 1 2 Message Errors 2 | . . . 2 Energy Discharges 1 | . . 1 . Overload Shots . | . . . . Overflow Damage . | . . . . Projectiles . | . . . . Explosions . | . . . . Melee . | . . . . Knockbacks . | . . . . Impact . | . . . . Kinetic . | . . . . Secondary . | . . . . Self-Inflicted Damage 11 | . . . 11 Shots . | . . . . Rammed 10 | . . . 10 Targets Rammed 10 | . . . 10 Kicked . | . . . . Crushed . | . . . . Highest Temperature 26 | . 26 . 14 Average Temperature 10 | . 10 . 14 Received Heat Transfer 524 | . 6 20 498 Siege Activations . | . . . . Robots Corrupted . | . . . . Combat Hostiles . | . . . . Parts Fried . | . . . . Impact Corruptions . | . . . . Robots Melted . | . . . . Combat Hostiles . | . . . . Parts Melted . | . . . . Heat Transferred . | . . . . Parts Sabotaged . | . . . . Parts Stolen . | . . . . Parts Stripped . | . . . . Power Chain Reactions . | . . . . Missiles Intercepted . | . . . . Alert | -11 -10 -10 -9 ------- Run | Jun Mat Min Mat Peak Influence 350 | . 300 162 350 Initial 117 | . . 117 35 Average 135 | . 180 127 123 Maximum Alert Level 1 | . 1 . 1 Low Security (%) 77 | 100 44 100 74 Level 1 22 | . 55 . 25 Level 2 . | . . . . Level 3 . | . . . . Level 4 . | . . . . Level 5 . | . . . . High Security . | . . . . Max Security . | . . . . Squads Dispatched 4 | . 1 . 3 Investigation 1 | . . . 1 Extermination . | . . . . Reinforcement 3 | . 1 . 2 Assault . | . . . . Garrison . | . . . . Intercept . | . . . . Searches Triggered . | . . . . Construction Impeded . | . . . . Haulers Reinforced . | . . . . Active Scanning Responses . | . . . . Cargo Convoy Interrupts . | . . . . Stealth | -11 -10 -10 -9 --------- Run | Jun Mat Min Mat Distress Signals 5 | . 1 1 3 Communications Jammed . | . . . . Distress Signals . | . . . . Times Spotted 71 | . 10 27 34 Peak Tracking Total 15 | . 7 15 15 Tactical Retreats 10 | . . 4 6 Traps | -11 -10 -10 -9 ------- Run | Jun Mat Min Mat Traps Triggered 1 | . . . 1 Indirectly . | . . . . Trap Hack Attempts . | . . . . Triggered . | . . . . Disarmed . | . . . . Reprogrammed . | . . . . Reused . | . . . . Traps Extracted . | . . . . Installed . | . . . . Triggered . | . . . . Machines | -11 -10 -10 -9 ---------- Run | Jun Mat Min Mat Machines Disabled . | . . . . Max in Single Turn . | . . . . Machines Repaired . | . . . . Machines Sabotaged . | . . . . Overloaded Fab Kills . | . . . . Hacking | -11 -10 -10 -9 --------- Run | Jun Mat Min Mat Machines Accessed 3 | . 2 . 1 Terminals 3 | . 2 . 1 Fabricators . | . . . . Repair Stations . | . . . . Recycling Units . | . . . . Scanalyzers . | . . . . Garrison Access . | . . . . Total Hacks 7 | . 3 . 4 Successful 1 | . . . 1 Failed 6 | . 3 . 3 Catastrophic 2 | . 1 . 1 Database Lockouts . | . . . . Manual 5 | . 1 . 4 Terminals 7 | . 3 . 4 Fabricators . | . . . . Repair Stations . | . . . . Recycling Units . | . . . . Scanalyzers . | . . . . Garrison Access . | . . . . Terminal Hacks 1 | . . . 1 Branch Access Points 1 | . . . 1 Fabricator Hacks . | . . . . Repair Station Hacks . | . . . . Recycling Unit Hacks . | . . . . Scanalyzer . | . . . . Garrison Access Hacks . | . . . . Unauthorized Hacks . | . . . . Terminals . | . . . . Fabricators . | . . . . Repair Stations . | . . . . Recycling Units . | . . . . Scanalyzers . | . . . . Garrison Access . | . . . . Data Cores Recovered . | . . . . Used . | . . . . Hacking Detections 3 | . 2 . 1 Full Trace Events 1 | . . . 1 Feedback Events . | . . . . Feedback Blocked . | . . . . Robot Schematics Acquired . | . . . . Robots Built . | . . . . Authchips . | . . . . Time . | . . . . Total Robot Build Rating . | . . . . Part Schematics Acquired . | . . . . Parts Built . | . . . . Authchips . | . . . . Time . | . . . . Total Part Build Rating . | . . . . Parts Repaired . | . . . . Time . | . . . . Parts Recycled . | . . . . Recycled Matter . | . . . . Retrieved Matter . | . . . . Retrieved Components . | . . . . Parts Scanalyzed . | . . . . Part Schematics Acquired . | . . . . Parts Damaged . | . . . . Bothacking | -11 -10 -10 -9 ------------ Run | Jun Mat Min Mat Used RIF Installer . | . . . . Robots Hacked . | . . . . Non-combat . | . . . . Combat . | . . . . Robot Hacks Applied . | . . . . Relay Couplers Released . | . . . . Fabnet Peak Effective % . | . . . . Robots Rewired . | . . . . Allies Hacked . | . . . . Hacks Repelled . | . . . . Allies | -11 -10 -10 -9 -------- Run | Jun Mat Min Mat Total Allies . | . . . . Largest Group . | . . . . Highest-Rated Group . | . . . . Highest-Rated Ally . | . . . . Total Orders . | . . . . Ally Attacks . | . . . . Total Damage . | . . . . Kills . | . . . . Allies Corrupted . | . . . . Allies Melted . | . . . . Intel | -11 -10 -10 -9 ------- Run | Jun Mat Min Mat Robot Analysis Total . | . . . . Derelict Logs Recovered 1 | . . 1 . Drone Launches . | . . . . Drone Recoveries . | . . . . Exploration | -11 -10 -10 -9 ------------- Run | Jun Mat Min Mat Turns Passed 511 | 2 104 174 231 Spaces Moved 926 | 1 117 397 411 Core 387 | . 63 2 322 Treads . | . . . . Legs 3 | 1 2 . . Wheels . | . . . . Hover 20 | . . . 20 Flight 516 | . 52 395 69 Fastest Speed 37 | 120 37 37 40 Average Speed 43 | 120 45 37 49 Slowest Speed 120 | 120 120 50 100 Overloaded Moves . | . . . . Propulsion Burnouts . | . . . . Robots Hopped 7 | . . 4 3 Cave-ins Triggered . | . . . . Exploration Rate (%) 41 | 2 32 81 49 Regions Visited 3 Branch Regions 1 Pre-discovered Areas . | . . . . Known Exits Taken . | . . . . Unknown Exits Taken 3 | 1 1 1 . Scrap Searched 1 | . . 1 . Spaces Dug . | . . . . Terrain Destroyed . | . . . . Melee . | . . . . Projectile . | . . . . AOE . | . . . . Terrain Rammed . | . . . . Walls Destroyed . | . . . . Machines Disabled . | . . . . Actions | -11 -10 -10 -9 --------- Run | Jun Mat Min Mat Total 1002 | 3 147 417 435 Wait 24 | . 7 17 . Move 909 | . 116 388 405 Hop 7 | . . 4 3 Pick Up 7 | . 3 2 2 Fast Attach 10 | . 4 2 4 Attach 9 | . 1 3 5 Detach 4 | . . 1 3 Swap . | . . . . Drop 9 | 3 5 . 1 Fire 13 | . 11 . 2 Melee . | . . . . Ram 10 | . . . 10 Kick . | . . . . Crush . | . . . . Escape Stasis . | . . . . Rewire . | . . . . Trap . | . . . . Miscellaneous . | . . . . Route ------- -11/Junkyard -10/Materials -10/Mines -9/Materials (discovered 2 exits: *Min x2) History --------- Turn | Location | Event 3 | -11/Junkyard | Discovered new exit (range 0) 3 | -11/Junkyard | Entered Materials 92 | -10/Materials | Discovered new exit (range 15) 107 | -10/Materials | Entered Mines 108 | -10/Mines | Met a Derelict bent on vengeance 110 | -10/Mines | Learned Materials security intel 117 | -10/Mines | Assembled infested the area 216 | -10/Mines | Core integrity fell below 50% 237 | -10/Mines | Found a damaged Exp. Sensor Array with a note attached 238 | -10/Mines | Found Prototype Device 238 | -10/Mines | Identified Exp. Sensor Array 252 | -10/Mines | Lost 5 parts (2n1u2w) 273 | -10/Mines | Discovered new exit (range 8) 281 | -10/Mines | Entered Materials 281 | -9/Materials | Evolved 2 slots: Propulsion x2 287 | -9/Materials | Identified exit to Mines 352 | -9/Materials | Build established: Mutant 424 | -9/Materials | Core integrity fell below 50% 461 | -9/Materials | Core integrity fell below 20% 477 | -9/Materials | Lost 3 parts (2n1w) 512 | -9/Materials | Destroyed by Y-45 Defender with Heavy Assault Rifle Last Messages --------------- Terminal M008. 00410_ O-16 Technician locks terminal. 00423_ Critical hit (Burn: +37). 00423_ Broken Lgt. Treads destroyed. 00428_ Acquired Imp. Hover Unit. 00436_ Slammed into G-34 Mercenary. 00436_ Destabilizing: System corrupted (+2). 00437_ Critical hit (Burn: +37). 00437_ Slammed into G-34 Mercenary. 00446_ Imp. Hover Unit destroyed. 00453_ W-16 Scout sends out distress signal. 00457_ A-02 Transporter suffers critical hit (Burn). 00487_ O-16 Technician: "IFF HANDSHAKE FAILED. SECURING TERMINAL." 00493_ ALERT: Hostiles spotted, dispatching reinforcements to Terminal M010. 00494_ Acquired Lgt. Cannon. 00496_ JJR/2A>WELULJ64#9KT/KLO| SKZFMYVR3V/W 00502_ W-16 Scout sends out distress signal. 00511_ Y-45 Defender Lgt. Treads blasted off. Map ----- +----------------------------------------------------+ | # ?????????# ## |######????????????? | | # "?????????# ## #?????????????????? | | ## #######???# #### ###?????????????????? | | ### # ????# #??# #???????????????????? | | ! + ????# #??# #???????????????????? | | # ?????# #??? #???????????????????? | | #? ?????# #??? #???????????????????? | | #?#+#?????# #??# ###?????????????????? | | ### ########/####### #?????????????????? | | ! #?????????????????? | | ### #?????????????????? | | ??# #?????????????????? | | ??# ##+##########+###### #?????????????????? | | ### # ?????? ???? ?####?????????????????? | | # ]??# ?? ??????????????????????? | | # """ #?# #? ??????????????????????? | | # """ #?# """ ## #?????????????????????? | | +###### """ #?# """""## #?????????????????????? | | ???# !#?# """""## #?????????????????????? | | #?########?# """""## #?????????????????????? | | #??????????# "????# #?????????????????????? | | #??????????# ?????# #?????????????????????? | | #??????????####??????# #?????????????????????? | | #????????????????????# #?????????????????????? | | #/###?#+################## #?????????????????????? | | #???# @ #?????????????????????? | | #???# ##+############Y#?????????????????????? | | ##### ## ! #??#%#?????????????????????? | | ^^ ## ! #?? ?????????????????????? | | ## #?? g????????????????????? | | """ ^ ""## +?? ???????????????????? | | """ T"## #?? ???????????????????? | | """ ""## """ """ #?? ?##??????????????????? | | ## """ """ #??###?????????????????????? | | + """ """ #??????????????????????????? | | #################????????????????????????????? | | #????????????????????????????????????????????? | | #+###????????????????????????????????????????????? | | !?????????????????????????????????????????????? | | #????????????????????????????????????????????? | | """ #????????????????????????????????????????????? | | """ #????????????????????????????????????????????? | | """ #????????????????????????????????????????????? | | #????????????????????????????????????????????? | | #####????????????????????????????????????????????? | | ?????????????????????????????????????????????????? | | ?????????????????????????????????????????????????? | | ?????????????????????????????????????????????????? | | ?????????????????????????????????????????????????? | | | +----------------------------------------------------+ Best States ------------- Heat Dissipation 42 Energy Generation 10 Energy Capacity 125 Matter Stores 300 Matter Capacity 300 Sight Range 16 Robot Scan Range 20 Terrain Scan Density 10 Armor Coverage 150 Evasion (%) 62 Item Schematics ----------------- None Robot Schematics ------------------ None Fabricated ------------ Nothing Alien Tech Used ----------------- None Achievements -------------- None Challenges ------------ None Game ------ Seed GammaDeepFrame Manual? 0 Play Time 00:12:24 Cumulative 992.0 hours Start 2023.03.30 @ 20:57:58 End 2023.03.30 @ 21:10:41 Sessions 1 Manual Loads 0 Difficulty Rogue Special Mode None Game No. 208 Rogue 176 Adventurer 31 Explorer 1 Win Type - Total 44 Types 30/0/6/7/0/0/1/0/0 Lore% 86 Gallery% 90 Achievement% 78 Wizard Run 0 Options --------- ASCII 0 Keyboard 0 Movement Arrows Keybinds 0 Fullscreen 1 Font 20/Terminus Map View 66x50 Tactical HUD 1 Map Filters NONE Filters NONE Steam 1 RUN: cc4edd5b-bcec-4ae6-a39b-ad12fde5e82f